bitfinex/quotes_BTCUSD_20250727
["timestamp","ask_amount","ask_price","bid_price","bid_amount"]
[1753610855558,0.04074264,118190.0,118180.0,1.68003164]
[1753610855990,0.04074264,118190.0,118180.0,1.67157019]
[1753610858186,0.04074264,118190.0,118180.0,1.66310867]
[1753610858461,0.04074264,118190.0,118180.0,1.67157019]
[1753610859081,0.03228184,118190.0,118180.0,1.68003164]
[1753610859504,0.03228184,118190.0,118180.0,1.67157019]
[1753610859922,0.03228184,118190.0,118180.0,2.03292619]
[1753610860334,0.04074264,118190.0,118180.0,2.03292619]
[1753610861177,0.04074264,118190.0,118180.0,1.71292619]
[1753610863269,0.04074264,118190.0,118180.0,1.72138764]
[1753610864127,0.04074264,118190.0,118180.0,1.71292619]
[1753610864336,0.03228184,118190.0,118180.0,1.72138764]
[1753610864763,0.03228184,118190.0,118180.0,1.71292619]
[1753610864911,0.04074272,118190.0,118180.0,1.71292619]
[1753610865089,0.03228184,118190.0,118180.0,1.71292619]
[1753610865311,0.03228184,118190.0,118180.0,1.72138764]
[1753610865517,0.02382111,118190.0,118180.0,1.72138764]
[1753610865771,0.03228184,118190.0,118180.0,1.72138764]
[1753610866471,0.02382111,118190.0,118180.0,1.72984902]
[1753610866724,0.03228191,118190.0,118180.0,1.72138764]
[1753610867215,0.02382111,118190.0,118180.0,1.72138764]
[1753610867428,0.03228191,118190.0,118180.0,1.72138764]
[1753610867638,0.02382111,118190.0,118180.0,1.72138764]
[1753610867848,0.03228191,118190.0,118180.0,1.72138764]
[1753610868054,0.02382111,118190.0,118180.0,1.72138764]
[1753610868313,0.03228191,118190.0,118180.0,1.72138764]
[1753610868542,0.02382111,118190.0,118180.0,1.72138764]
[1753610869118,0.03228199,118190.0,118180.0,1.70446467]
[1753610869558,0.03228191,118190.0,118180.0,1.70446467]
[1753610869780,0.03228191,118190.0,118180.0,1.69600308]
[1753610869781,0.20996184,118190.0,118180.0,1.69600308]
[1753610871319,0.04920374,118190.0,118180.0,1.71292633]
[1753610871535,0.21842279,118190.0,118180.0,1.70446474]
[1753610871749,0.04074279,118190.0,118180.0,1.71292633]
[1753610872391,0.04074279,118190.0,118180.0,1.70446474]
[1753610872595,0.04074279,118190.0,118180.0,1.71292633]
[1753610872808,0.20996184,118190.0,118180.0,1.69600308]
[1753610873030,0.20996184,118190.0,118180.0,1.70446467]
[1753610873244,0.20996184,118190.0,118180.0,1.70446474]
[1753610873687,0.20996184,118190.0,118180.0,1.69600308]
[1753610875427,0.20996184,118190.0,118180.0,1.70446474]
[1753610875672,0.20996184,118190.0,118180.0,1.69600308]
[1753610876189,0.20996184,118190.0,118180.0,0.70242208]
[1753610876411,0.20996184,118190.0,118180.0,1.74581308]
[1753610876860,0.03228177,118190.0,118180.0,1.76273619]
[1753610877318,0.04074257,118190.0,118180.0,1.76273626]
[1753610877566,0.04074257,118190.0,118180.0,1.65292602]
[1753610877810,0.04074257,118190.0,118180.0,1.63600305]
[1753610878029,0.04074257,118190.0,118180.0,1.64446457]
[1753610878327,0.04074257,118190.0,118180.0,1.72894187]
[1753610880116,0.03228177,118190.0,118180.0,1.73740332]
[1753610880767,0.03228177,118190.0,118180.0,1.72894187]
[1753610880982,0.04074265,118190.0,118180.0,1.72894187]
[1753610881221,0.04074265,118190.0,118180.0,1.75447588]
[1753610881454,0.03228177,118190.0,118180.0,1.75447588]
[1753610882295,0.03228177,118190.0,118180.0,1.76308564]
[1753610882541,0.04074257,118190.0,118180.0,1.76308564]
[1753610882976,0.04074257,118190.0,118180.0,1.76244564]
[1753610883190,0.04074257,118190.0,118180.0,1.76244571]
[1753610883411,0.04074257,118190.0,118180.0,1.77090723]
[1753610884136,0.03228177,118190.0,118180.0,1.77090723]
[1753610884582,0.03228177,118190.0,118180.0,1.77936868]
[1753610885445,0.02382104,118190.0,118180.0,1.77936868]
[1753610885579,0.03228177,118190.0,118180.0,1.77936868]
[1753610886835,0.03228177,118190.0,118180.0,1.77090723]
[1753610887034,0.03228177,118190.0,118180.0,1.77936868]
[1753610888689,0.03228177,118190.0,118180.0,1.77090723]
[1753610889130,0.04074265,118190.0,118180.0,1.76244571]
[1753610889336,0.2099617,118190.0,118180.0,1.74552246]
[1753610889547,0.04074265,118190.0,118180.0,1.75398412]
[1753610889768,0.04074265,118190.0,118180.0,2.12313971]
[1753610889986,0.03228177,118190.0,118180.0,2.13160123]
[1753610891447,0.03228177,118190.0,118180.0,2.14006268]
[1753610891857,0.03228177,118190.0,118180.0,1.97976268]
[1753610893116,0.03228177,118190.0,118180.0,1.98822406]
[1753610894068,0.03228177,118190.0,118180.0,1.97976268]
[1753610896820,0.04074265,118190.0,118180.0,1.97130123]
[1753610897192,0.04074265,118190.0,118180.0,1.96283971]
[1753610897435,0.04074265,118190.0,118180.0,1.97130123]
[1753610897603,0.03228177,118190.0,118180.0,1.97130123]
[1753610897946,0.04074265,118190.0,118180.0,1.97130123]
[1753610898157,0.03228177,118190.0,118180.0,1.97130123]
[1753610898368,0.03228177,118190.0,118180.0,1.97976261]
[1753610898586,0.02382104,118190.0,118180.0,1.97976261]
[1753610898802,0.03228177,118190.0,118180.0,1.97976261]
[1753610899014,0.02382104,118190.0,118180.0,2.31976261]
[1753610899448,0.03228177,118190.0,118180.0,2.31976268]
[1753610899666,0.03228177,118190.0,118180.0,2.31130123]
[1753610900089,0.03228177,118190.0,118180.0,1.07597761]
[1753610900090,0.02382104,118190.0,118180.0,1.07597761]
[1753610900519,0.02382104,118190.0,118180.0,2.35154261]
[1753610901152,0.03228177,118190.0,118180.0,2.35154261]
[1753610901835,0.03228177,118190.0,118180.0,2.34308123]
[1753610902086,0.03228177,118190.0,118180.0,2.36000406]
[1753610902523,0.02382104,118190.0,118180.0,2.36000406]
[1753610902672,0.03228177,118190.0,118180.0,2.36000406]
[1753610902884,0.03228177,118190.0,118180.0,2.35154268]
[1753610903120,0.03228177,118190.0,118180.0,2.32533668]
[1753610903299,0.03228177,118190.0,118180.0,2.33379806]
[1753610903475,0.02382104,118190.0,118180.0,2.33379806]
[1753610903678,0.0322817,118190.0,118180.0,2.33379806]
[1753610903876,0.0322817,118190.0,118180.0,2.32533668]
[1753610904088,0.0322817,118190.0,118180.0,2.31687523]
[1753610904298,0.0407425,118190.0,118180.0,2.31687523]
[1753610904511,0.0407425,118190.0,118180.0,2.30841371]
[1753610904723,0.04920345,118190.0,118180.0,2.28461971]
[1753610904934,0.04920345,118190.0,118180.0,2.07491971]
[1753610905155,0.0407425,118190.0,118180.0,2.07491971]
[1753610906815,0.0407425,118190.0,118180.0,2.08338123]
[1753610907212,0.0322817,118190.0,118180.0,2.08338123]
[1753610907465,0.0322817,118190.0,118180.0,2.09184268]
[1753610907692,0.0407425,118190.0,118180.0,2.09184268]
[1753610908139,0.0407425,118190.0,118180.0,2.08338123]
[1753610908299,0.0407425,118190.0,118180.0,2.09184268]
[1753610909287,0.0322817,118190.0,118180.0,2.10030406]
[1753610909543,0.04074243,118190.0,118180.0,2.09184268]
[1753610909995,0.04074243,118190.0,118180.0,2.10030406]
[1753610910630,0.04074243,118190.0,118180.0,2.09184268]
[1753610911265,0.04074243,118190.0,118180.0,1.07597768]
[1753610911513,0.04074243,118190.0,118180.0,2.45315568]
[1753610911710,0.04074243,118190.0,118180.0,2.50302568]
[1753610911939,0.04074243,118190.0,118180.0,2.47681968]
[1753610912384,0.04074243,118190.0,118180.0,2.46835823]
[1753610912595,0.04920331,118190.0,118180.0,2.14056723]
[1753610912823,0.04074243,118190.0,118180.0,2.14056723]
[1753610913040,0.04074243,118190.0,118180.0,2.11436123]
[1753610914641,0.04920331,118190.0,118180.0,2.10589971]
[1753610914861,0.04074243,118190.0,118180.0,2.11436123]
[1753610916665,0.04074243,118190.0,118180.0,2.12282268]
[1753610916840,0.04074243,118190.0,118180.0,2.11436123]
[1753610917977,0.04074243,118190.0,118180.0,2.27260268]
[1753610918660,0.04920323,118190.0,118180.0,2.11414123]
[1753610918887,0.04920323,118190.0,118180.0,2.10567971]
[1753610919109,0.04920323,118190.0,118180.0,2.11414123]
[1753610921127,0.04920323,118190.0,118180.0,1.96414123]
[1753610921531,0.04920323,118190.0,118180.0,1.95567971]
[1753610921765,0.04920323,118190.0,118180.0,1.96414123]
[1753610922658,0.04920323,118190.0,118180.0,1.06751623]
[1753610922828,0.04074243,118190.0,118180.0,1.07597768]
[1753610923047,0.04074243,118190.0,118180.0,2.26463668]
[1753610923450,0.0322817,118190.0,118180.0,2.27309806]
[1753610924443,0.0322817,118190.0,118180.0,2.07309806]
[1753610924677,0.0322817,118190.0,118180.0,2.06463668]
[1753610924894,0.04074243,118190.0,118180.0,2.06463668]
[1753610925088,0.04074243,118190.0,118180.0,2.07309806]
[1753610925301,0.04074243,118190.0,118180.0,2.06463668]
[1753610925633,0.04074243,118190.0,118180.0,2.07309806]
[1753610926536,0.04074243,118190.0,118180.0,2.06463668]
[1753610927203,0.04074243,118190.0,118180.0,2.07309806]
[1753610927807,0.04074243,118190.0,118180.0,2.06463668]
[1753610928300,0.04074243,118190.0,118180.0,2.07309806]
[1753610928880,0.0322817,118190.0,118180.0,2.07309806]
[1753610929517,0.01536045,118190.0,118180.0,2.07309771]
[1753610929729,0.01536045,118190.0,118180.0,2.07309728]
[1753610930168,0.01536038,118190.0,118180.0,2.07309728]
[1753610930928,0.0069,118190.0,118180.0,2.07309728]
[1753610931760,0.0069,118190.0,118180.0,2.07209728]
[1753610932203,0.0069,118190.0,118180.0,2.07409728]
[1753610932640,0.0069,118190.0,118180.0,2.07309728]
[1753610932848,0.0069,118190.0,118180.0,2.07509728]
[1753610933461,0.0069,118190.0,118180.0,4.33954728]
[1753610935556,0.0069,118190.0,118180.0,4.30589928]
[1753610938507,0.0069,118190.0,118180.0,4.18895128]
[1753610939546,0.0069,118190.0,118180.0,4.16279028]
[1753610940981,0.0069,118190.0,118180.0,1.08643828]
[1753610941194,0.0069,118190.0,118180.0,4.18899628]
[1753610941653,0.0069,118190.0,118180.0,4.16279028]
[1753610941872,0.0069,118190.0,118180.0,4.10184828]
[1753610942331,0.0069,118190.0,118180.0,4.06770451]
[1753610942536,0.0069,118190.0,118180.0,4.02206651]
[1753610942971,0.0069,118190.0,118180.0,2.35973851]
[1753610943187,0.0069,118190.0,118180.0,2.19405951]
[1753610943613,0.0153603,118190.0,118180.0,2.19405951]
[1753610943836,0.0069,118190.0,118180.0,2.19405951]
[1753610945375,0.0069,118190.0,118180.0,2.21959435]
[1753610949714,0.0069,118190.0,118180.0,2.22820675]
[1753610951166,0.01536038,118190.0,118180.0,2.22820675]
[1753610951367,0.0153603,118190.0,118180.0,2.22820675]
[1753610952322,0.0069,118190.0,118180.0,2.22820675]
[1753610952849,0.0069,118190.0,118180.0,1.08644175]
[1753610953030,0.0069,118190.0,118180.0,2.76281975]
[1753610953673,0.0069,118190.0,118180.0,2.73661375]
[1753610954568,0.01536038,118190.0,118180.0,2.73661375]
[1753610954998,0.01536038,118190.0,118180.0,2.71689575]
[1753610955235,0.0153603,118190.0,118180.0,2.70354275]
[1753610956609,0.0153603,118190.0,118180.0,2.39614475]
[1753610958083,0.0069,118190.0,118180.0,2.39614475]
[1753610958480,0.0153603,118190.0,118180.0,2.39614475]
[1753610960239,0.0069,118190.0,118180.0,2.39614475]
[1753610963642,0.01536038,118190.0,118180.0,2.39614475]
[1753610963855,0.0069,118190.0,118180.0,2.39614475]
[1753610967118,0.0153603,118190.0,118180.0,2.39614475]
[1753610967310,0.0069,118190.0,118180.0,2.39614475]
[1753610967542,0.0153603,118190.0,118180.0,2.39614475]
[1753610967934,0.0069,118190.0,118180.0,2.39614475]
[1753610968586,0.0153603,118190.0,118180.0,2.39614475]
[1753610968737,0.0069,118190.0,118180.0,2.39614475]
[1753610975940,0.0153603,118190.0,118180.0,2.39614475]
[1753610976166,0.0069,118190.0,118180.0,2.39614475]
[1753610977863,0.0069,118190.0,118180.0,2.85059275]
[1753610978504,0.0069,118190.0,118180.0,2.82536075]
[1753610979413,0.0069,118190.0,118180.0,2.80414375]
[1753610979608,0.0069,118190.0,118180.0,2.79090875]
[1753610981047,0.0069,118190.0,118180.0,1.08644175]
[1753610981246,0.0069,118190.0,118180.0,2.81711475]
[1753610981453,0.0069,118190.0,118180.0,2.79090875]
[1753610985616,0.0069,118190.0,118180.0,2.77460675]
[1753610993656,0.0069,118190.0,118180.0,1.83212975]
[1753611003892,0.0069,118190.0,118180.0,1.08644175]
[1753611004111,0.0069,118190.0,118180.0,2.87912475]
[1753611006530,0.0069,118190.0,118180.0,2.92989475]
[1753611006755,0.0069,118190.0,118180.0,2.87912475]
[1753611007375,0.0069,118190.0,118180.0,2.84497751]
[1753611009419,0.0069,118190.0,118180.0,2.86995014]
[1753611012353,0.0069,118190.0,118180.0,2.87822994]
[1753611014653,0.0069,118190.0,118180.0,3.27657494]
[1753611014880,0.0069,118190.0,118180.0,3.24158094]
[1753611015795,0.0069,118190.0,118180.0,3.04145394]
[1753611016287,0.0069,118190.0,118180.0,2.97799994]
[1753611026763,0.0069,118190.0,118180.0,1.08554694]
[1753611026983,0.0069,118190.0,118180.0,3.67802294]
[1753611027184,0.0069,118190.0,118180.0,3.22831694]
[1753611032412,0.0069,118190.0,118180.0,3.11791594]
[1753611032625,0.0069,118190.0,118180.0,2.90111794]
[1753611036826,0.0069,118190.0,118180.0,2.95188794]
[1753611037052,0.0069,118190.0,118180.0,2.90111794]
[1753611041664,0.0069,118190.0,118180.0,2.64440294]
[1753611041805,0.0069,118190.0,118180.0,2.52211594]
[1753611042025,0.01536038,118190.0,118180.0,2.41101694]
[1753611042252,0.01536038,118190.0,118180.0,2.39820894]
[1753611042677,0.01536038,118190.0,118180.0,2.41350894]
[1753611043091,0.0153603,118190.0,118180.0,2.41350894]
[1753611043300,0.0069,118190.0,118180.0,2.41350894]
[1753611046877,0.0069,118190.0,118180.0,2.46426894]
[1753611047066,0.0069,118190.0,118180.0,2.41350894]
[1753611049331,0.0153603,118190.0,118180.0,2.41350894]
[1753611051239,0.0069,118190.0,118180.0,2.41350894]
[1753611052161,0.0069,118190.0,118180.0,3.13094094]
[1753611053647,0.01734045,118190.0,118180.0,1.11799512]
[1753611053868,0.04868104,118190.0,118180.0,1.23658933]
[1753611054086,0.04868104,118190.0,118180.0,1.22812802]
[1753611054087,0.0571417,118190.0,118180.0,1.22812802]
[1753611054756,0.0342617,118190.0,118180.0,1.23658947]
[1753611055200,0.04272243,118190.0,118180.0,1.21966664]
[1753611055625,0.0342617,118190.0,118180.0,1.21966664]
[1753611055846,0.0342617,118190.0,118180.0,1.22812809]
[1753611056019,0.0342617,118190.0,118180.0,1.23658947]
[1753611057857,0.0890417,118190.0,118180.0,0.99771012]
[1753611058084,0.0821025,118190.0,118180.0,1.11799164]
[1753611058292,0.0821025,118190.0,118180.0,1.12645309]
[1753611058556,0.0592225,118190.0,118180.0,1.14109164]
[1753611058752,0.0592225,118190.0,118180.0,1.14414164]
[1753611058935,0.0427225,118190.0,118180.0,1.14414164]
[1753611059456,0.0427225,118190.0,118180.0,1.15260309]
[1753611059885,0.0342617,118190.0,118180.0,1.15260309]
[1753611060125,0.0427225,118190.0,118180.0,1.15260309]
[1753611060336,0.04272243,118190.0,118180.0,1.13568012]
[1753611060543,0.05118331,118190.0,118180.0,1.14414171]
[1753611060963,0.05118331,118190.0,118180.0,1.15260323]
[1753611061158,0.04272243,118190.0,118180.0,1.15260323]
[1753611061380,0.05118323,118190.0,118180.0,1.14414171]
[1753611061799,0.05118373,118190.0,118180.0,1.14414178]
[1753611062009,0.06748373,118190.0,118180.0,1.15260337]
[1753611062248,0.06748373,118190.0,118180.0,1.14109178]
[1753611062458,0.08338373,118190.0,118180.0,1.14109178]
[1753611063294,0.06748373,118190.0,118180.0,1.14109178]
[1753611063743,0.23670278,118190.0,118180.0,1.13263012]
[1753611063957,0.23670278,118190.0,118180.0,1.10916612]
[1753611064167,0.23670278,118190.0,118180.0,1.12067778]
[1753611064608,0.23670278,118190.0,118180.0,1.12913937]
[1753611064609,0.05902278,118190.0,118180.0,1.12913937]
[1753611064838,0.05902278,118190.0,118180.0,1.13760089]
[1753611065262,0.05902278,118190.0,118180.0,1.12913937]
[1753611065910,0.05902278,118190.0,118180.0,1.13113937]
[1753611065911,0.04272278,118190.0,118180.0,1.13113937]
[1753611066183,0.04272278,118190.0,118180.0,1.13960089]
[1753611066388,0.04272278,118190.0,118180.0,1.13113937]
[1753611066752,0.04272278,118190.0,118180.0,1.13960089]
[1753611066956,0.04272278,118190.0,118180.0,1.13113937]
[1753611067178,0.04272278,118190.0,118180.0,1.13960089]
[1753611067357,0.04272278,118190.0,118180.0,1.17638389]
[1753611068054,0.04272278,118190.0,118180.0,1.11698878]
[1753611068284,0.05118366,118190.0,118180.0,1.12545037]
[1753611068486,0.04272278,118190.0,118180.0,1.12745037]
[1753611068709,0.03426198,118190.0,118180.0,1.14437334]
[1753611069069,0.03228198,118190.0,118180.0,1.14437334]
[1753611070378,0.02382125,118190.0,118180.0,1.15283472]
[1753611070588,0.02382097,118190.0,118180.0,1.15283437]
[1753611070800,0.0322817,118190.0,118180.0,1.14437306]
[1753611071020,0.0322817,118190.0,118180.0,1.13591168]
[1753611071519,0.02382097,118190.0,118180.0,1.14437306]
[1753611071835,0.03228163,118190.0,118180.0,1.14437306]
[1753611072424,0.03228163,118190.0,118180.0,1.85801363]
[1753611073208,0.03228163,118190.0,118180.0,1.84955225]
[1753611073793,0.03228163,118190.0,118180.0,1.85801363]
[1753611074173,0.03228163,118190.0,118180.0,1.81054663]
[1753611074784,0.03228163,118190.0,118180.0,1.80208525]
[1753611074983,0.03228163,118190.0,118180.0,1.81054663]
[1753611075385,0.03228163,118190.0,118180.0,1.86130663]
[1753611075583,0.03228163,118190.0,118180.0,1.72600563]
[1753611076060,0.03228163,118190.0,118180.0,1.73460125]
[1753611076498,0.03228163,118190.0,118180.0,1.72613987]
[1753611076677,0.03228163,118190.0,118180.0,1.73460125]
[1753611077822,0.03228163,118190.0,118180.0,1.72613987]
[1753611078033,0.03228163,118190.0,118180.0,1.73460125]
[1753611078222,0.03228163,118190.0,118180.0,1.76880988]
[1753611079125,0.03228163,118190.0,118180.0,1.75188719]
[1753611079325,0.03228163,118190.0,118180.0,1.76034857]
[1753611079751,0.03228163,118190.0,118180.0,1.76880988]
[1753611079968,0.04074243,118190.0,118180.0,1.55022774]
[1753611080193,0.03228163,118190.0,118180.0,1.55868919]
[1753611080613,0.03228163,118190.0,118180.0,1.56715057]
[1753611081687,0.02382097,118190.0,118180.0,1.59161188]
[1753611081889,0.02382097,118190.0,118180.0,1.58315057]
[1753611082053,0.03228163,118190.0,118180.0,1.58315057]
[1753611082451,0.04074236,118190.0,118180.0,1.57468919]
[1753611082727,0.03228163,118190.0,118180.0,1.58315057]
[1753611082870,0.03228163,118190.0,118180.0,1.57468919]
[1753611083074,0.04074236,118190.0,118180.0,1.58315057]
[1753611083275,0.03228163,118190.0,118180.0,1.57468919]
[1753611083483,0.03228163,118190.0,118180.0,1.58315057]
[1753611083680,0.03228163,118190.0,118180.0,1.57468919]
[1753611083881,0.04074236,118190.0,118180.0,1.52436319]
[1753611084081,0.04074236,118190.0,118180.0,1.51590174]
[1753611084290,0.04074236,118190.0,118180.0,1.52436319]
[1753611084484,0.04920316,118190.0,118180.0,1.29387574]
[1753611084694,0.04920316,118190.0,118180.0,1.26638219]
[1753611084896,0.04920316,118190.0,118180.0,1.25792074]
[1753611085124,0.04920316,118190.0,118180.0,1.24726219]
[1753611085314,0.04074236,118190.0,118180.0,1.23880074]
[1753611085535,0.04074236,118190.0,118180.0,1.24726219]
[1753611085695,0.03228163,118190.0,118180.0,1.25572357]
[1753611086511,0.02382097,118190.0,118180.0,1.26418488]
[1753611088429,0.02382097,118190.0,118180.0,1.26418452]
[1753611088645,0.02382097,118190.0,118180.0,1.25572329]
[1753611090096,0.02382097,118190.0,118180.0,1.06004629]
[1753611090302,0.02382097,118190.0,118180.0,2.04050429]
[1753611092113,0.02382097,118190.0,118180.0,2.04896552]
[1753611092371,0.0238209,118190.0,118180.0,2.04896552]
[1753611093932,0.01536038,118190.0,118180.0,2.04896552]
[1753611094170,0.0238209,118190.0,118180.0,2.040504]
[1753611095234,0.0069,118190.0,118180.0,2.040504]
[1753611095462,0.02382082,118190.0,118180.0,2.040504]
[1753611095887,0.02382082,118190.0,118180.0,2.04896516]
[1753611096114,0.02382075,118190.0,118180.0,2.04896516]
[1753611096317,0.02382075,118190.0,118180.0,2.06546516]
[1753611096535,0.03228127,118190.0,118180.0,2.057004]
[1753611096773,0.03228127,118190.0,118180.0,2.06546516]
[1753611097213,0.02382075,118190.0,118180.0,2.06546516]
[1753611098954,0.02382075,118190.0,118180.0,2.057004]
[1753611099947,0.02382075,118190.0,118180.0,2.06546516]
[1753611104927,0.0153603,118190.0,118180.0,2.06546516]
[1753611106150,0.02382075,118190.0,118180.0,2.06546516]
[1753611106395,0.0153603,118190.0,118180.0,2.06546516]
[1753611106580,0.0153603,118190.0,118180.0,1.08500716]
[1753611106920,0.0153603,118190.0,118180.0,2.49737816]
[1753611107140,0.02382075,118190.0,118180.0,2.49737816]
[1753611107714,0.0153603,118190.0,118180.0,2.49737816]
[1753611108352,0.02382075,118190.0,118180.0,2.49737816]
[1753611110257,0.0153603,118190.0,118180.0,2.49737816]
[1753611110432,0.02382075,118190.0,118180.0,2.49737816]
[1753611111323,0.0153603,118190.0,118180.0,2.49737816]
[1753611111863,0.02382075,118190.0,118180.0,2.30673816]
[1753611112298,0.0153603,118190.0,118180.0,2.30673816]
[1753611112747,0.02382075,118190.0,118180.0,2.30673816]
[1753611112960,0.0153603,118190.0,118180.0,2.30673816]
[1753611113171,0.02382068,118190.0,118180.0,2.30673816]
[1753611114388,0.0322812,118190.0,118180.0,2.30673816]
[1753611115309,0.02382068,118190.0,118180.0,2.30673816]
[1753611115532,0.03228113,118190.0,118180.0,2.30673816]
[1753611116510,0.02382068,118190.0,118180.0,2.30673816]
[1753611118068,0.03228113,118190.0,118180.0,2.30673816]
[1753611120291,0.03228113,118190.0,118180.0,2.29538816]
[1753611122139,0.03228113,118190.0,118180.0,2.286927]
[1753611122346,0.03228113,118190.0,118180.0,2.29538816]
[1753611125559,0.03228113,118190.0,118180.0,2.34614816]
[1753611125789,0.03228113,118190.0,118180.0,2.29538816]
[1753611126970,0.02382068,118190.0,118180.0,2.29538816]
[1753611129651,0.02382068,118190.0,118180.0,1.08500716]
[1753611129861,0.02382068,118190.0,118180.0,2.80116416]
[1753611131239,0.02382068,118190.0,118180.0,2.44116416]
[1753611134218,0.02382068,118190.0,118180.0,2.25052416]
[1753611134812,0.0153603,118190.0,118180.0,2.25052416]
[1753611135023,0.02382075,118190.0,118180.0,2.25052416]
[1753611135434,0.0153603,118190.0,118180.0,2.25052416]
[1753611137073,0.02382075,118190.0,118180.0,2.25052416]
[1753611137291,0.0153603,118190.0,118180.0,2.21618122]
[1753611137505,0.02382075,118190.0,118180.0,2.21618122]
[1753611137722,0.0153603,118190.0,118180.0,2.21618122]
[1753611139299,0.02382068,118190.0,118180.0,2.21618122]
[1753611140148,0.0153603,118190.0,118180.0,2.44809322]
[1753611140643,0.02382075,118190.0,118180.0,2.44809322]
[1753611141413,0.02382068,118190.0,118180.0,2.44809322]
[1753611142342,0.02382068,118190.0,118180.0,2.47288248]
[1753611142941,0.02382068,118190.0,118180.0,2.39596901]
[1753611146545,0.03228113,118190.0,118180.0,2.39596901]
[1753611147714,0.02382068,118190.0,118180.0,2.39596901]
[1753611151607,0.03228113,118190.0,118180.0,2.39596901]
[1753611153029,0.03228113,118190.0,118180.0,2.20262485]
[1753611153665,0.03228113,118190.0,118180.0,2.21108601]
[1753611154560,0.02382068,118190.0,118180.0,2.21108601]
[1753611155448,0.03228113,118190.0,118180.0,2.21108601]
[1753611155872,0.03228113,118190.0,118180.0,2.20262485]
[1753611156092,0.03228113,118190.0,118180.0,2.21108601]
[1753611156232,0.02382068,118190.0,118180.0,2.21108601]
[1753611158910,0.0322812,118190.0,118180.0,2.21108601]
[1753611159317,0.02382068,118190.0,118180.0,2.21108601]
[1753611161430,0.02382068,118190.0,118180.0,2.20262485]
[1753611161636,0.0322812,118190.0,118180.0,2.20262485]
[1753611162116,0.02382068,118190.0,118180.0,2.21108601]
[1753611163205,0.0322812,118190.0,118180.0,2.21108601]
[1753611163417,0.02382068,118190.0,118180.0,2.21108601]
[1753611163641,0.02382068,118190.0,118180.0,1.08376701]
[1753611163862,0.02382068,118190.0,118180.0,2.42163801]
[1753611164043,0.0322812,118190.0,118180.0,2.42163801]
[1753611164273,0.0322812,118190.0,118180.0,2.41317685]
[1753611164480,0.03228113,118190.0,118180.0,2.42163801]
[1753611164885,0.03228113,118190.0,118180.0,2.41317685]
[1753611165033,0.03228113,118190.0,118180.0,2.42163801]
[1753611167322,0.03228113,118190.0,118180.0,1.07530578]
[1753611167525,0.03228113,118190.0,118180.0,1.07530585]
[1753611168147,0.03228113,118190.0,118180.0,1.06684462]
[1753611168351,0.03228113,118190.0,118180.0,1.07530585]
[1753611169019,0.04074172,118190.0,118180.0,1.07530585]
[1753611169235,0.03228113,118190.0,118180.0,1.07530585]
[1753611170520,0.03228113,118190.0,118180.0,1.08376701]
[1753611171808,0.03228113,118190.0,118180.0,1.07530585]
[1753611172458,0.03228113,118190.0,118180.0,1.08376701]
[1753611172730,0.03228113,118190.0,118180.0,1.07530585]
[1753611172960,0.02382068,118190.0,118180.0,1.08376701]
[1753611173600,0.0322812,118190.0,118180.0,1.07530585]
[1753611174471,0.0322812,118190.0,118180.0,1.08376701]
[1753611175763,0.02382068,118190.0,118180.0,1.08376701]
[1753611177895,0.03228113,118190.0,118180.0,1.08376701]
[1753611179652,0.03228113,118190.0,118180.0,1.07530585]
[1753611179853,0.03228113,118190.0,118180.0,1.08376701]
[1753611182372,0.03228113,118190.0,118180.0,1.07530585]
[1753611182577,0.03228113,118190.0,118180.0,1.08376701]
[1753611183245,0.04074172,118190.0,118180.0,1.06684462]
[1753611183456,0.03228113,118190.0,118180.0,1.07530578]
[1753611186626,0.02382068,118190.0,118180.0,1.07530578]
[1753611189283,0.0322812,118190.0,118180.0,1.07530578]
[1753611189901,0.02382068,118190.0,118180.0,1.07530578]
[1753611191790,0.03228113,118190.0,118180.0,1.07530578]
[1753611192961,0.02382068,118190.0,118180.0,1.07530578]
[1753611194092,0.03228113,118190.0,118180.0,1.07530578]
[1753611201055,0.02382068,118190.0,118180.0,1.07530578]
[1753611202398,0.02382068,118190.0,118180.0,1.04220299]
[1753611203387,0.0153603,118190.0,118180.0,1.04220299]
[1753611205319,0.0153603,118190.0,118180.0,1.06732172]
[1753611205722,0.02382075,118190.0,118180.0,1.06732172]
[1753611206139,0.0153603,118190.0,118180.0,1.06732172]
[1753611207398,0.0069,118190.0,118180.0,1.06732172]
[1753611207612,0.0069,118190.0,118180.0,3.31017672]
[1753611207809,0.0069,118190.0,118180.0,3.31868848]
[1753611208263,0.0069,118190.0,118180.0,3.20216048]
[1753611208861,0.0069,118190.0,118180.0,3.17595448]
[1753611209428,0.0069,118190.0,118180.0,3.07595448]
[1753611210260,0.0069,118190.0,118180.0,2.70961348]
[1753611210639,0.0069,118190.0,118180.0,2.51897348]
[1753611211428,0.0153603,118190.0,118180.0,2.51897348]
[1753611211646,0.0153603,118190.0,118180.0,2.49276748]
[1753611212054,0.0153603,118190.0,118180.0,2.37401348]
[1753611213421,0.0069,118190.0,118180.0,2.37401348]
[1753611215376,0.0153603,118190.0,118180.0,2.37401348]
[1753611216981,0.0153603,118190.0,118180.0,2.34772048]
[1753611217162,0.0069,118190.0,118180.0,2.34772048]
[1753611218168,0.0069,118190.0,118180.0,2.33351148]
[1753611223678,0.0069,118190.0,118180.0,1.07583348]
[1753611223907,0.0069,118190.0,118180.0,2.35789148]
[1753611225497,0.0069,118190.0,118180.0,2.33168548]
[1753611229230,0.0069,118190.0,118180.0,2.11779748]
[1753611229448,0.0069,118190.0,118180.0,2.24663748]
[1753611237047,0.0069,118190.0,118180.0,1.07555348]
[1753611237305,0.0069,118190.0,118180.0,2.37645248]
[1753611238496,0.0069,118190.0,118180.0,2.26143048]
[1753611241166,0.0153603,118190.0,118180.0,2.26143048]
[1753611241372,0.0069,118190.0,118180.0,2.26143048]
[1753611243519,0.01536038,118190.0,118180.0,2.25296932]
[1753611243732,0.0069,118190.0,118180.0,2.22132348]
[1753611243951,0.01536038,118190.0,118180.0,2.11186548]
[1753611245230,0.0069,118190.0,118180.0,2.11186548]
[1753611247735,0.0153603,118190.0,118180.0,2.11186548]
[1753611247873,0.0069,118190.0,118180.0,2.11186548]
[1753611249093,0.01536038,118190.0,118180.0,2.11186548]
[1753611249593,0.0069,118190.0,118180.0,2.11186548]
[1753611253334,0.0069,118190.0,118180.0,1.07555348]
[1753611253553,0.0069,118190.0,118180.0,2.49888948]
[1753611255341,0.0069,118190.0,118180.0,2.49812884]
[1753611261481,0.0069,118190.0,118180.0,2.48606084]
[1753611264469,0.0069,118190.0,118180.0,1.07479284]
[1753611264667,0.0069,118190.0,118180.0,2.64226684]
[1753611265074,0.0069,118190.0,118180.0,2.51226684]
[1753611265446,0.0069,118190.0,118180.0,2.48606084]
[1753611267362,0.0069,118190.0,118180.0,2.45243035]
[1753611269345,0.0069,118190.0,118180.0,2.46095022]
[1753611269865,0.0069,118190.0,118180.0,2.48572763]
[1753611274149,0.001078,118190.0,118180.0,2.48572763]
[1753611280812,0.001078,118190.0,118180.0,1.07445963]
[1753611281020,0.001078,118190.0,118180.0,3.00470763]